fUST/lending_fUST_20240909
["ID","MTS","AMOUNT","RATE_DAILY","PERIOD"]
[337601996,1725889842391,-500.67967646,0.00035616,14]
[337601998,1725889842401,-500.0,0.00035616,14]
[337602000,1725889842410,-500.0,0.00035616,14]
[337602002,1725889842419,-500.0,0.00035616,14]
[337602004,1725889842429,-152.889851,0.00035616,14]
[337602006,1725889842441,-1574.93,0.00035616,14]
[337602008,1725889842451,-500.0,0.00035616,14]
[337602010,1725889842460,-230.19581965,0.00035616,14]
[337602012,1725889842469,-500.0,0.00035616,14]
[337602014,1725889842479,-504.58965756,0.00035616,14]
[337602016,1725889842488,-151.0,0.00035616,14]
[337602018,1725889842497,-151.0,0.00035616,14]
[337602021,1725889842506,-196.67701753,0.00035616,7]
[337602023,1725889842515,-500.0,0.00035616,14]
[337602027,1725889842524,-618.3,0.00035616,14]
[337602031,1725889842535,-500.0,0.00035616,14]
[337602034,1725889842544,-1123.34,0.00035616,14]
[337602036,1725889842555,-500.0,0.00035616,14]
[337602037,1725889842564,-514.77,0.00035616,14]
[337602038,1725889842573,-2118.12,0.00035616,14]
[337602039,1725889842582,-500.0,0.00035616,14]
[337602040,1725889842591,-511.12,0.00035616,14]
[337602041,1725889842600,-500.0,0.00035616,14]
[337602042,1725889842610,-500.0,0.00035616,14]
[337602043,1725889842619,-1631.8,0.00035616,14]
[337602044,1725889842628,-500.0,0.00035616,14]
[337602045,1725889842638,-1555.93,0.00035616,14]
[337602046,1725889842648,-648.9,0.00035616,14]
[337602047,1725889842658,-151.0,0.00035616,14]
[337602048,1725889842668,-151.0,0.00035616,14]
[337602050,1725889842678,-689.81,0.00035616,14]
[337602056,1725889842858,-500.0,0.00035616,14]
[337602058,1725889842867,-730.32,0.00035616,14]
[337602060,1725889842877,-151.0,0.00035616,14]
[337602062,1725889842888,-151.0,0.00035616,14]
[337602064,1725889842897,-500.0,0.00035616,14]
[337602066,1725889842906,-2019.71,0.00035616,14]
[337602068,1725889842916,-500.0,0.00035616,14]
[337602070,1725889842925,-502.93046143,0.00035616,14]
[337602072,1725889842935,-502.12219496,0.00035616,14]
[337602074,1725889842950,-500.0,0.00035616,14]
[337602076,1725889842960,-2118.45,0.00035616,14]
[337602078,1725889842970,-500.0,0.00035616,14]
[337602080,1725889842980,-500.0,0.00035616,14]
[337602082,1725889842989,-500.0,0.00035616,14]
[337602084,1725889842999,-973.09,0.00035616,14]
[337602086,1725889843009,-500.0,0.00035616,14]
[337602088,1725889843018,-500.0,0.00035616,14]
[337602090,1725889843028,-500.0,0.00035616,14]
[337602093,1725889843037,-500.0,0.00035616,14]
[337602096,1725889843047,-500.0,0.00035616,14]
[337602099,1725889843056,-500.0,0.00035616,14]
[337602101,1725889843065,-500.0,0.00035616,14]
[337602103,1725889843078,-500.0,0.00035616,14]
[337602105,1725889843087,-151.0,0.00035616,14]
[337602107,1725889843096,-370.84989202,0.00035616,14]
[337602109,1725889843106,-151.0,0.00035616,14]
[337602111,1725889843115,-500.0,0.00035616,14]
[337602113,1725889843125,-508.68,0.00035616,14]
[337602115,1725889843135,-151.0,0.00035616,14]
[337602117,1725889843145,-151.0,0.00035616,14]
[337602119,1725889843154,-500.0,0.00035616,14]
[337602121,1725889843164,-905.47,0.00035616,14]
[337602123,1725889843174,-500.0,0.00035616,7]
[337602125,1725889843183,-662.3,0.00035616,14]
[337602127,1725889843195,-500.0,0.00035616,14]
[337602129,1725889843204,-500.0,0.00035616,14]
[337602132,1725889843214,-500.0,0.00035616,14]
[337602134,1725889843223,-500.0,0.00035616,14]
[337602136,1725889843233,-500.0,0.00035616,14]
[337602138,1725889843243,-500.0,0.00035616,14]
[337602140,1725889843253,-500.0,0.00035616,14]
[337602142,1725889843262,-500.0,0.00035616,14]
[337602144,1725889843271,-500.0,0.00035616,14]
[337602145,1725889843280,-500.0,0.00035616,14]
[337602147,1725889843289,-1367.77,0.00035616,14]
[337602150,1725889843299,-500.0,0.00035616,14]
[337602152,1725889843309,-500.0,0.00035616,14]
[337602154,1725889843319,-500.0,0.00035616,14]
[337602156,1725889843330,-151.0,0.00035616,14]
[337602158,1725889843340,-500.0,0.00035616,14]
[337602160,1725889843349,-151.0,0.00035616,14]
[337602162,1725889843359,-500.0,0.00035616,14]
[337602164,1725889843368,-693.91,0.00035616,14]
[337602166,1725889843378,-151.0,0.00035616,14]
[337602168,1725889843388,-500.0,0.00035616,14]
[337602170,1725889843398,-311.451193,0.00035616,14]
[337602172,1725889843407,-151.0,0.00035616,14]
[337602174,1725889843417,-596.26,0.00035616,14]
[337602176,1725889843427,-311.451193,0.00035616,14]
[337602178,1725889843437,-575.75,0.00035616,14]
[337602180,1725889843446,-757.81,0.00035616,14]
[337602182,1725889843456,-500.0,0.00035616,14]
[337602184,1725889843465,-311.451193,0.00035616,14]
[337602186,1725889843476,-500.0,0.00035616,14]
[337602188,1725889843485,-311.451193,0.00035616,14]
[337602190,1725889843495,-500.0,0.00035616,14]
[337602192,1725889843505,-899.75,0.00035616,14]
[337602194,1725889843515,-500.0,0.00035616,14]
[337602196,1725889843524,-500.0,0.00035616,14]
[337602198,1725889843535,-223.840046,0.00035616,14]
[337602201,1725889843544,-223.840046,0.00035616,14]
[337602203,1725889843554,-500.0,0.00035616,14]
[337602205,1725889843564,-599.59,0.00035616,14]
[337602207,1725889843573,-500.0,0.00035616,14]
[337602209,1725889843583,-500.0,0.00035616,14]
[337602211,1725889843592,-223.840046,0.00035616,14]
[337602213,1725889843602,-223.840046,0.00035616,14]
[337602215,1725889843611,-502.43838905,0.00035616,14]
[337602217,1725889843621,-500.0,0.00035616,14]
[337602219,1725889843631,-1030.55,0.00035616,14]
[337602221,1725889843640,-305.011856,0.00035616,14]
[337602223,1725889843649,-305.011856,0.00035616,14]
[337602225,1725889843658,-500.0,0.00035616,14]
[337602227,1725889843667,-225.466354,0.00035616,14]
[337602229,1725889843677,-225.466354,0.00035616,14]
[337602231,1725889843687,-500.0,0.00035616,14]
[337602233,1725889843697,-500.0,0.00035616,14]
[337602235,1725889843707,-577.62,0.00035616,14]
[337602237,1725889843717,-500.0,0.00035616,14]
[337602239,1725889843727,-305.011856,0.00035616,14]
[337602241,1725889843736,-175.697451,0.00035616,14]
[337602243,1725889843746,-305.011856,0.00035616,14]
[337602245,1725889843755,-225.466354,0.00035616,14]
[337602247,1725889843765,-175.697451,0.00035616,14]
[337602249,1725889843775,-833.33,0.00035616,14]
[337602251,1725889843785,-225.466354,0.00035616,14]
[337602253,1725889843795,-501.08798804,0.00035616,14]
[337602255,1725889843805,-500.0,0.00035616,14]
[337602257,1725889843815,-532.76,0.00035616,14]
[337602259,1725889843826,-500.0,0.00035616,14]
[337602262,1725889843836,-500.0,0.00035616,14]
[337602264,1725889843846,-175.697451,0.00035616,14]
[337602266,1725889843856,-175.697451,0.00035616,14]
[337602268,1725889843866,-501.9617986,0.00035616,14]
[337602270,1725889843876,-500.0,0.00035616,14]
[337602272,1725889843886,-500.0,0.00035616,14]
[337602274,1725889843896,-606.33,0.00035616,14]
[337602276,1725889843905,-500.0,0.00035616,14]
[337602278,1725889843915,-500.0,0.00035616,14]
[337602280,1725889843926,-500.0,0.00035616,14]
[337602282,1725889843936,-500.0,0.00035616,14]
[337602284,1725889843947,-500.0,0.00035616,14]
[337602286,1725889843957,-500.0,0.00035616,14]
[337602288,1725889843966,-500.0,0.00035616,14]
[337602290,1725889843976,-2487.04,0.00035616,14]
[337602292,1725889843985,-500.0,0.00035616,14]
[337602294,1725889843995,-1000.81,0.00035616,14]
[337602296,1725889844005,-500.0,0.00035616,14]
[337602298,1725889844014,-501.44245015,0.00035616,14]
[337602300,1725889844024,-500.36544117,0.00035616,14]
[337602302,1725889844033,-500.0,0.00035616,14]
[337602304,1725889844043,-502.88880513,0.00035616,14]
[337602306,1725889844053,-1616.87,0.00035616,14]
[337602308,1725889844063,-500.0,0.00035616,14]
[337602311,1725889844074,-919.94,0.00035616,14]
[337602313,1725889844084,-151.762696,0.00035616,14]
[337602315,1725889844095,-500.0,0.00035616,14]
[337602317,1725889844105,-151.762696,0.00035616,14]
[337602319,1725889844114,-500.0,0.00035616,14]
[337602321,1725889844125,-500.9987486,0.00035616,14]
[337602323,1725889844135,-500.28680857,0.00035616,14]
[337602325,1725889844145,-151.762696,0.00035616,14]
[337602327,1725889844156,-151.762696,0.00035616,14]
[337602329,1725889844165,-330.910376,0.00035616,14]
[337602331,1725889844175,-330.910376,0.00035616,14]
[337602333,1725889844185,-503.72103106,0.00035616,14]
[337602335,1725889844195,-330.910376,0.00035616,14]
[337602337,1725889844205,-330.910376,0.00035616,14]
[337602339,1725889844216,-500.48690562,0.00035616,14]
[337602342,1725889844226,-500.0,0.00035616,14]
[337602344,1725889844237,-1831.65,0.00035616,14]
[337602346,1725889844246,-500.0,0.00035616,14]
[337602348,1725889844257,-500.0,0.00035616,14]
[337602350,1725889844266,-500.0,0.00035616,14]
[337602352,1725889844277,-4834.03,0.00035616,14]
[337602354,1725889844287,-500.0,0.00035616,14]
[337602356,1725889844297,-1614.78,0.00035616,14]
[337602358,1725889844306,-500.0,0.00035616,14]
[337602360,1725889844316,-4163.164683,0.00035616,14]
[337602362,1725889844326,-4163.164683,0.00035616,14]
[337602364,1725889844335,-4163.164683,0.00035616,14]
[337602366,1725889844344,-4098.7594423,0.00035616,14]
[337602430,1725889844948,-64.4052407,0.00035616,14]
[337602432,1725889844957,-204.90745461,0.00035616,14]
[337602568,1725889846225,-424.55714454,0.00035585,7]
[337602570,1725889846235,-538.87254539,0.00035616,14]
[337602572,1725889846245,-503.56152399,0.00035616,14]
[337602574,1725889846255,-500.0,0.00035616,14]
[337602576,1725889846264,-502.42175064,0.00035616,14]
[337602578,1725889846274,-1447.05,0.00035616,14]
[337602580,1725889846283,-452.40785029,0.00035616,14]
[337602582,1725889846293,-556.46,0.00035616,14]
[337602584,1725889846303,-235.66918515,0.00035616,14]
[337604064,1725890595188,5000.0,0.00028,120]
[337604065,1725890603181,1167.9090703,0.00028,120]
[337604066,1725890611142,5000.0,0.00028,120]
[337604067,1725890621596,155.0,0.000275,2]
[337604068,1725890626396,155.0,0.000275,2]
[337604069,1725890626786,5000.0,0.00028,120]
[337604070,1725890631272,155.0,0.000275,2]
[337604071,1725890636161,234.55280221,0.000275,2]
[337604072,1725890642094,5000.0,0.00028,120]
[337604073,1725890657811,225.45369246,0.000275,2]
[337604076,1725890823299,302.72946818,0.0002657,2]
[337604077,1725890849512,5000.0,0.00027,2]
[337604078,1725890865751,868.28180695,0.00027,2]
[337604079,1725890900441,500.0,0.00026849,2]
[337604080,1725890969356,-237.787351,0.00028898,2]
[337604081,1725890969379,-166.666666,0.00028971,2]
[337604082,1725890969402,-250.0,0.0002909,2]
[337604083,1725890969423,-308.5388931,0.00029104,2]
[337604084,1725890969444,-166.66666667,0.00029149,2]
[337604085,1725890969465,-250.0,0.00029169,2]
[337604086,1725890969487,-172.163381,0.00029198,2]
[337604087,1725890969508,-2500.0,0.000292,2]
[337604088,1725890969534,-250.0,0.00029249,2]
[337604089,1725890969557,-176.4791115,0.00029313,2]
[337604090,1725890969584,-250.0,0.00029329,2]
[337604091,1725890969608,-250.0,0.00029409,2]
[337604092,1725890969632,-250.0,0.00029489,2]
[337604093,1725890969656,-250.0,0.00029568,2]
[337604094,1725890969680,-250.0,0.00029648,2]
[337604095,1725890969703,-250.0,0.00029728,2]
[337604096,1725890969727,-300.0,0.0002976,2]
[337604097,1725890969749,-166.666666,0.00029761,2]
[337604098,1725890969771,-300.0,0.00029807,2]
[337604099,1725890969793,-193.0,0.00029807,30]
[337604100,1725890969815,-250.0,0.00029808,2]
[337604101,1725890969838,-250.0,0.00029887,2]
[337604102,1725890969860,-250.0,0.00029967,2]
[337604103,1725890969881,-961.412687,0.00029981,2]
[337604104,1725890969902,-151.0,0.0003,120]
[337604105,1725890969924,-151.0,0.0003,120]
[337604106,1725890969947,-58.73912226,0.0003,2]
[337604107,1725891008690,1059.0,0.00027,2]
[337604108,1725891020232,155.0,0.00027,2]
[337604109,1725891025311,155.0,0.00027,2]
[337604110,1725891030413,155.0,0.00027,2]
[337604113,1725891032185,-305.84891193,0.0003,2]
[337604114,1725891032221,-1135.41196581,0.0003,2]
[337604115,1725891032230,-651.40894554,0.0003,2]
[337604116,1725891032240,-151.0,0.0003,120]
[337604117,1725891032251,-500.0,0.0003002,12]
[337604118,1725891032260,-250.0,0.00030047,2]
[337604119,1725891032269,-1500.0,0.00030121,2]
[337604121,1725891032280,-250.0,0.00030127,2]
[337604123,1725891032291,-250.0,0.00030207,2]
[337604124,1725891032301,-1500.0,0.00030242,2]
[337604126,1725891032310,-250.0,0.00030286,2]
[337604127,1725891032320,-400.0,0.00030363,2]
[337604128,1725891032331,-400.0,0.00030363,2]
[337604129,1725891032340,-1500.0,0.00030364,2]
[337604130,1725891032350,-250.0,0.00030366,2]
[337604131,1725891032359,-444.0435619,0.00030408,4]
[337604132,1725891032369,-250.0,0.00030438,2]
[337604133,1725891032378,-250.0,0.00030446,2]
[337604134,1725891032387,-1500.0,0.00030485,2]
[337604135,1725891032397,-250.0,0.00030526,2]
[337604136,1725891032406,-166.666666,0.00030551,2]
[337604137,1725891032415,-250.0,0.00030606,2]
[337604138,1725891032426,-1460.54827442,0.00030606,2]
[337604151,1725891035153,155.0,0.00027,2]
[337604186,1725891038299,-39.45172558,0.00030606,2]
[337604189,1725891038313,-294.0,0.00030633,2]
[337604191,1725891038323,-5935.2630719,0.00030633,2]
[337604193,1725891038333,-1500.0,0.00030727,2]
[337604195,1725891038343,-1500.0,0.00030848,2]
[337604197,1725891038353,-1740.94337244,0.0003087,2]
[337604199,1725891038364,-1500.0,0.0003097,2]
[337604201,1725891038375,-1500.0,0.00031091,2]
[337604203,1725891038385,-1500.0,0.00031212,2]
[337604205,1725891038396,-716.36214938,0.00031258,2]
[337604207,1725891038406,-1500.0,0.00031333,2]
[337604209,1725891038418,-166.666666,0.00031341,2]
[337604211,1725891038428,-1500.0,0.00031455,2]
[337604214,1725891038440,-1500.0,0.00031576,2]
[337604216,1725891038451,-1500.0,0.00031697,2]
[337604218,1725891038462,-24900.0,0.00031726,2]
[337604220,1725891038476,-1798.5582527,0.00031795,2]
[337604222,1725891038486,-270.6017625,0.00031815,2]
[337604224,1725891038496,-1500.0,0.00031818,2]
[337604226,1725891038507,-1500.0,0.00031939,2]
[337604228,1725891038518,-1740.94337242,0.00032003,2]
[337604230,1725891038530,-1500.0,0.00032061,2]
[337604232,1725891038540,-166.666666,0.00032131,2]
[337604235,1725891038553,-1500.0,0.00032182,2]
[337604237,1725891038564,-337.664868,0.00032198,2]
[337604239,1725891038575,-337.664868,0.00032206,2]
[337604241,1725891038585,-337.664868,0.00032215,2]
[337604243,1725891038596,-2229.16678671,0.00032222,2]
[337604245,1725891038606,-337.664868,0.00032223,2]
[337604247,1725891038615,-337.664868,0.00032232,2]
[337604249,1725891038625,-337.664868,0.0003224,2]
[337604251,1725891038636,-337.664868,0.00032249,2]
[337604252,1725891038646,-337.664868,0.00032257,2]
[337604255,1725891038656,-337.664868,0.00032266,2]
[337604257,1725891038668,-337.664868,0.00032274,2]
[337604259,1725891038677,-337.664868,0.00032283,2]
[337604261,1725891038687,-337.664868,0.00032291,2]
[337604263,1725891038697,-337.664868,0.000323,2]
[337604265,1725891038708,-1500.0,0.00032303,2]
[337604266,1725891038720,-337.664868,0.00032308,2]
[337604267,1725891038730,-287.5,0.00032312,3]
[337604268,1725891038740,-862.5,0.00032312,3]
[337604270,1725891038751,-209.46,0.00032312,3]
[337604272,1725891038763,-266.72,0.00032312,3]
[337604274,1725891038777,-222.26,0.00032312,3]
[337604276,1725891038788,-194.78,0.00032313,120]
[337604278,1725891038798,-564.68,0.00032313,3]
[337604280,1725891038808,-282.34,0.00032313,3]
[337604282,1725891038818,-847.06,0.00032313,3]
[337604284,1725891038828,-337.664868,0.00032317,2]
[337604285,1725891038838,-543.74814108,0.0003232,2]
[337604286,1725891038847,-500.0,0.0003232,2]
[337604287,1725891038857,-500.812646,0.0003232,2]
[337604288,1725891038867,-500.0,0.0003232,2]
[337604289,1725891038878,-228.27028467,0.0003232,2]
[337604290,1725891038888,-500.0,0.0003232,2]
[337604291,1725891038898,-500.0,0.0003232,2]
[337604292,1725891038908,-500.0,0.0003232,2]
[337604293,1725891038918,-500.0,0.0003232,2]
[337604294,1725891038929,-500.0,0.0003232,2]
[337604295,1725891038939,-500.0,0.0003232,2]
[337604296,1725891038950,-500.0,0.0003232,2]
[337604297,1725891038960,-500.0,0.0003232,2]
[337604298,1725891038971,-500.0,0.0003232,2]
[337604299,1725891038982,-500.0,0.0003232,2]
[337604300,1725891038992,-500.0,0.0003232,2]
[337604301,1725891039003,-500.0,0.0003232,2]
[337604302,1725891039012,-500.0,0.0003232,2]
[337604303,1725891039022,-500.0,0.0003232,2]
[337604304,1725891039033,-500.0,0.0003232,2]
[337604305,1725891039044,-500.0,0.0003232,2]
[337604306,1725891039054,-500.0,0.0003232,2]
[337604307,1725891039064,-500.0,0.0003232,2]
[337604308,1725891039074,-193.67255463,0.0003232,2]
[337604309,1725891039084,-500.0,0.0003232,2]
[337604310,1725891039094,-500.0,0.0003232,2]
[337604311,1725891039104,-500.0,0.0003232,2]
[337604312,1725891039114,-500.0,0.0003232,2]
[337604313,1725891039125,-500.0,0.0003232,2]
[337604314,1725891039134,-500.0,0.0003232,2]
[337604315,1725891039144,-500.0,0.0003232,2]
[337604316,1725891039155,-500.0,0.0003232,2]
[337604317,1725891039165,-500.0,0.0003232,2]
[337604318,1725891039177,-500.0,0.0003232,2]
[337604319,1725891039189,-500.0,0.0003232,2]
[337604320,1725891039199,-500.0,0.0003232,2]
[337604321,1725891039209,-500.0,0.0003232,2]
[337604322,1725891039220,-500.0,0.0003232,2]
[337604323,1725891039230,-500.0,0.0003232,2]
[337604324,1725891039239,-500.0,0.0003232,2]
[337604325,1725891039249,-500.0,0.0003232,2]
[337604326,1725891039258,-500.0,0.0003232,2]
[337604327,1725891039267,-500.0,0.0003232,2]
[337604328,1725891039277,-500.0,0.0003232,2]
[337604329,1725891039286,-500.0,0.0003232,2]
[337604330,1725891039296,-500.0,0.0003232,2]
[337604331,1725891039305,-500.0,0.0003232,2]
[337604332,1725891039315,-500.0,0.0003232,2]
[337604333,1725891039325,-500.0,0.0003232,2]
[337604334,1725891039334,-500.0,0.0003232,2]
[337604335,1725891039344,-500.0,0.0003232,2]
[337604336,1725891039356,-500.0,0.0003232,2]
[337604337,1725891039365,-500.0,0.0003232,2]
[337604338,1725891039375,-500.0,0.0003232,2]
[337604339,1725891039385,-500.0,0.0003232,2]
[337604340,1725891039395,-500.0,0.0003232,2]
[337604341,1725891039404,-500.0,0.0003232,2]
[337604342,1725891039414,-500.0,0.0003232,2]
[337604343,1725891039424,-500.0,0.0003232,2]
[337604344,1725891039434,-500.0,0.0003232,2]
[337604345,1725891039444,-500.0,0.0003232,2]
[337604346,1725891039454,-500.0,0.0003232,2]
[337604347,1725891039463,-500.0,0.0003232,2]
[337604348,1725891039477,-500.0,0.0003232,2]
[337604349,1725891039487,-500.0,0.0003232,2]
[337604350,1725891039497,-500.0,0.0003232,2]
[337604351,1725891039507,-500.0,0.0003232,2]
[337604352,1725891039517,-500.0,0.0003232,2]
[337604353,1725891039527,-500.0,0.0003232,2]
[337604354,1725891039537,-500.0,0.0003232,2]
[337604355,1725891039547,-500.0,0.0003232,2]
[337604356,1725891039561,-500.0,0.0003232,2]
[337604357,1725891039570,-259.18,0.00032321,2]
[337604358,1725891039580,-259.18,0.00032321,2]
[337604359,1725891039590,-259.18,0.00032321,2]
[337604360,1725891039601,-259.18,0.00032321,2]
[337604361,1725891039610,-259.18,0.00032321,2]
[337604362,1725891039620,-259.18,0.00032321,2]
[337604363,1725891039631,-259.18,0.00032321,2]
[337604364,1725891039640,-259.18,0.00032321,2]
[337604365,1725891039650,-259.18,0.00032321,2]
[337604366,1725891039659,-185.13124537,0.00032322,2]
[337604367,1725891039680,-231.02812483,0.00032322,2]
[337604368,1725891039691,-500.0,0.00032322,2]
[337604369,1725891039703,-514.5495143,0.00032322,2]
[337604370,1725891039713,-500.0,0.00032322,2]
[337604371,1725891039725,-330.61277702,0.00032322,2]
[337604372,1725891039734,-160096.438504,0.00032323,4]
[337604373,1725891039744,-75585.332244,0.00032323,4]
[337604374,1725891039754,-337.664868,0.00032325,2]
[337604375,1725891039763,-337.664868,0.00032333,2]
[337604377,1725891039773,-337.664868,0.00032342,2]
[337604379,1725891039783,-337.664868,0.0003235,2]
[337604381,1725891039793,-2229.16678671,0.00032358,2]
[337604383,1725891039802,-337.664868,0.00032359,2]
[337604385,1725891039812,-1500.0,0.00032424,2]
[337604387,1725891039821,-2229.16678671,0.00032495,2]
[337604388,1725891039830,-500.0,0.00032525,5]
[337604389,1725891039840,-500.0,0.00032525,5]
[337604390,1725891039852,-500.0,0.00032525,5]
[337604391,1725891039861,-1500.0,0.00032545,2]
[337604392,1725891039871,-2229.16678671,0.00032631,2]
[337604393,1725891039881,-1500.0,0.00032667,2]
[337604394,1725891039890,-150.112233,0.000327,6]
[337604395,1725891039900,-560.0,0.00032712,2]
[337604405,1725891040134,-2229.16678671,0.00032767,2]
[337604407,1725891040145,-1500.0,0.00032788,2]
[337604409,1725891040155,-477.56810747,0.00032821,2]
[337604411,1725891040165,-160096.438504,0.00032867,4]
[337604413,1725891040175,-75585.332244,0.00032867,5]
[337604415,1725891040185,-23250.7463298,0.00032877,2]
[337604417,1725891040195,-40940.06,0.000329,14]
[337604419,1725891040205,-690.88,0.000329,14]
[337604422,1725891040220,-2686.97,0.000329,14]
[337604424,1725891040230,-500.0,0.000329,2]
[337604426,1725891040240,-500.0,0.000329,2]
[337604428,1725891040250,-2795.56,0.000329,30]
[337604430,1725891040260,-500.0,0.000329,5]
[337604432,1725891040271,-500.0,0.000329,5]
[337604434,1725891040281,-1500.0,0.00032909,2]
[337604436,1725891040291,-166.666666,0.00032921,2]
[337604437,1725891040300,-150.112233,0.00033,10]
[337604438,1725891040309,-1500.0,0.0003303,2]
[337604439,1725891040319,-1740.94337242,0.00033137,2]
[337604440,1725891040330,-1500.0,0.00033152,2]
[337604441,1725891040340,-1500.0,0.00033273,2]
[337604442,1725891040351,-1500.0,0.00033394,2]
[337604443,1725891040360,-560.0,0.00033399,2]
[337604444,1725891040370,-150.112233,0.000334,9]
[337604445,1725891040379,-1500.0,0.00033515,2]
[337604446,1725891040389,-294.0,0.00033633,2]
[337604447,1725891040398,-1500.0,0.00033636,2]
[337604448,1725891040407,-575.0,0.00033682,3]
[337604449,1725891040416,-1129.36,0.00033683,3]
[337604450,1725891040426,-564.68,0.00033683,3]
[337604451,1725891040435,-150.112233,0.000337,5]
[337604452,1725891040445,-1500.0,0.00033758,2]
[337604453,1725891040454,-1398.90174747,0.00033879,2]
[337604454,1725891040464,-500.0,0.00033895,5]
[337604455,1725891040478,-434.0679777,0.00033895,5]
[337604456,1725891040488,-310.8157173,0.00033895,5]
[337604457,1725891040498,-150.112233,0.00034,5]
[337604458,1725891040507,-968.42,0.00034,14]
[337604459,1725891040517,-1000.0,0.00034246,60]
[337604460,1725891040527,-501.25041749,0.0003427,2]
[337604461,1725891040536,-803.72080134,0.0003427,2]
[337604462,1725891040547,-663.8729052,0.0003427,5]
[337604463,1725891040560,-251.00193753,0.0003427,5]
[337604464,1725891040570,-1740.94337242,0.0003427,2]
[337604465,1725891040580,-150.112233,0.000343,10]
[337604466,1725891040590,-465.62840537,0.00034462,2]
[337604467,1725891040602,-208.2649181,0.00034478,2]
[337604468,1725891040612,-40940.06,0.000345,14]
[337604469,1725891040621,-690.88,0.000345,14]
[337604470,1725891040634,-2686.97,0.000345,14]
[337604471,1725891040644,-2795.56,0.000345,30]
[337604472,1725891040654,-208.2649181,0.00034521,2]
[337604474,1725891040663,-150.112233,0.000346,5]
[337604476,1725891040673,-416.2498614,0.00034795,2]
[337604478,1725891040686,-150.112233,0.00035,8]
[337604480,1725891040696,-506.288,0.00035,120]
[337604482,1725891040705,-1000.0,0.00035205,60]
[337604484,1725891040715,-243.0,0.00035243,2]
[337604486,1725891040726,-150.0,0.00035245,2]
[337604488,1725891040736,-300.0,0.00035249,120]
[337604490,1725891040745,-5734.84796611,0.00035255,2]
[337604493,1725891040755,-259.18,0.00035259,2]
[337604495,1725891040764,-127566.13350056,0.0003526,2]
[337604497,1725891040774,-150.112233,0.000353,10]
[337604499,1725891040784,-5734.84796612,0.00035393,2]
[337604501,1725891040795,-160096.438504,0.00035401,5]
[337604503,1725891040804,-75585.332244,0.00035401,5]
[337604505,1725891040814,-152.328802,0.00035401,14]
[337604507,1725891040824,-151.0,0.00035401,14]
[337604509,1725891040834,-184.944685,0.00035401,14]
[337604511,1725891040843,-184.944685,0.00035401,14]
[337604514,1725891040855,-1740.94337242,0.00035404,2]
[337604516,1725891040864,-150.112233,0.000355,9]
[337604518,1725891040874,-150.112233,0.000355,6]
[337604520,1725891040884,-150.112233,0.000355,5]
[337604522,1725891040893,-150.112233,0.000355,5]
[337604524,1725891040903,-34550.42369425,0.00035516,120]
[337604526,1725891040913,-150.0,0.0003554,2]
[337604528,1725891040923,-501.66479479,0.00035573,5]
[337604530,1725891040932,-500.0,0.00035573,5]
[337604532,1725891040942,-500.0,0.00035573,5]
[337604534,1725891040951,-500.0,0.00035573,5]